[Event "*** Titled Tuesday Blitz"]
[Site "Chess.com"]
[Date "2020.05.19"]
[Round "10"]
[White "Xeniya2005"]
[Black "bmt011"]
[Result "1-0"]
[WhiteElo "2283"]
[BlackElo "2058"]
[TimeControl "180+1"]
[EndTime "13:55:26 PDT"]
[Termination "Xeniya2005 won by checkmate"]

1. e4 {[%clk 0:03:00.9]} 1... e6 {[%clk 0:02:59.5]} 2. d4 {[%clk 0:03:00.2]}
2... d5 {[%clk 0:03:00]} 3. Nd2 {[%clk 0:02:59]} 3... Nf6 {[%clk 0:02:59.8]} 4.
e5 {[%clk 0:02:58.7]} 4... Nfd7 {[%clk 0:03:00.3]} 5. Bd3 {[%clk 0:02:58.2]}
5... c5 {[%clk 0:03:00.8]} 6. c3 {[%clk 0:02:57.3]} 6... Nc6 {[%clk 0:03:01.2]}
7. Ngf3 {[%clk 0:02:57]} 7... cxd4 {[%clk 0:02:59.4]} 8. cxd4 {[%clk 0:02:57.9]}
8... f6 {[%clk 0:02:59.6]} 9. exf6 {[%clk 0:02:57.2]} 9... Qxf6 {[%clk
0:02:59.3]} 10. O-O {[%clk 0:02:55.5]} 10... Bd6 {[%clk 0:02:59.6]} 11. Nb3
{[%clk 0:02:53.2]} 11... h6 {[%clk 0:02:58.8]} 12. Qc2 {[%clk 0:02:46.4]} 12...
O-O {[%clk 0:02:50.3]} 13. a3 {[%clk 0:02:41.6]} 13... e5 {[%clk 0:02:48]} 14.
dxe5 {[%clk 0:02:39.9]} 14... Ndxe5 {[%clk 0:02:48.5]} 15. Nxe5 {[%clk
0:02:38.2]} 15... Bxe5 {[%clk 0:02:46.7]} 16. f4 {[%clk 0:02:34.9]} 16... Bd6
{[%clk 0:02:33.6]} 17. Bd2 {[%clk 0:02:25.8]} 17... Bf5 {[%clk 0:02:09]} 18.
Rae1 {[%clk 0:02:19.7]} 18... Nd4 {[%clk 0:02:05.3]} 19. Qc3 {[%clk 0:02:16.4]}
19... Rac8 {[%clk 0:01:58]} 20. Qxd4 {[%clk 0:02:10]} 20... Bc5 {[%clk
0:01:57.3]} 21. Qxc5 {[%clk 0:02:01.5]} 21... Rxc5 {[%clk 0:01:55.6]} 22. Nxc5
{[%clk 0:02:02.4]} 22... Bxd3 {[%clk 0:01:44.2]} 23. Nxd3 {[%clk 0:02:00.1]}
23... Qd4+ {[%clk 0:01:41.8]} 24. Re3 {[%clk 0:01:58.1]} 24... Rc8 {[%clk
0:01:23]} 25. Re1 {[%clk 0:01:50.8]} 25... Qb6 {[%clk 0:01:14.3]} 26. Kh1 {[%clk
0:01:45.8]} 26... Rc2 {[%clk 0:01:13.1]} 27. R3e2 {[%clk 0:01:22.8]} 27... Qb5
{[%clk 0:01:10.1]} 28. Ne5 {[%clk 0:01:14.4]} 28... Rxb2 {[%clk 0:01:08]} 29. f5
{[%clk 0:01:09.8]} 29... d4 {[%clk 0:01:04.3]} 30. Ng6 {[%clk 0:00:59.4]} 30...
Rb1 {[%clk 0:01:00.2]} 31. Rxb1 {[%clk 0:00:51.5]} 31... Qxb1+ {[%clk
0:00:55.9]} 32. Re1 {[%clk 0:00:50.3]} 32... Qd3 {[%clk 0:00:55.6]} 33. Re8+
{[%clk 0:00:48.9]} 33... Kf7 {[%clk 0:00:55.7]} 34. Rf8# {[%clk 0:00:49]} 1-0

[Event "*** Titled Tuesday Blitz"]
[Site "Chess.com"]
[Date "2020.05.19"]
[Round "10"]
[White "oykuince"]
[Black "anon569"]
[Result "0-1"]
[WhiteElo "2015"]
[BlackElo "2260"]
[TimeControl "180+1"]
[EndTime "13:55:26 PDT"]
[Termination "anon569 won by resignation"]

1. e4 {[%clk 0:03:00.9]} 1... c5 {[%clk 0:02:58.8]} 2. Nf3 {[%clk 0:02:59.1]}
2... d6 {[%clk 0:02:57]} 3. d4 {[%clk 0:02:58.2]} 3... cxd4 {[%clk 0:02:57.5]}
4. Nxd4 {[%clk 0:02:58.3]} 4... Nf6 {[%clk 0:02:58.1]} 5. Nc3 {[%clk 0:02:58.1]}
5... a6 {[%clk 0:02:58.3]} 6. Be3 {[%clk 0:02:57]} 6... e6 {[%clk 0:02:58.3]} 7.
Be2 {[%clk 0:02:52.5]} 7... Be7 {[%clk 0:02:58.5]} 8. O-O {[%clk 0:02:51.1]}
8... Qc7 {[%clk 0:02:58.7]} 9. f4 {[%clk 0:02:40]} 9... Nbd7 {[%clk 0:02:57.6]}
10. Kh1 {[%clk 0:02:36.7]} 10... b5 {[%clk 0:02:53.4]} 11. Bf3 {[%clk
0:02:36.4]} 11... Bb7 {[%clk 0:02:53.1]} 12. e5 {[%clk 0:02:33.3]} 12... dxe5
{[%clk 0:02:50.8]} 13. fxe5 {[%clk 0:02:33.1]} 13... Nxe5 {[%clk 0:02:47]} 14.
Bxb7 {[%clk 0:02:25.9]} 14... Qxb7 {[%clk 0:02:45.9]} 15. Bf4 {[%clk 0:02:25.8]}
15... Nc4 {[%clk 0:02:36.6]} 16. b3 {[%clk 0:02:25.5]} 16... Nb6 {[%clk
0:02:36.1]} 17. Qe2 {[%clk 0:02:24.9]} 17... O-O {[%clk 0:02:26.8]} 18. Rae1
{[%clk 0:02:23.1]} 18... Rac8 {[%clk 0:02:26.5]} 19. Nd1 {[%clk 0:02:18.3]}
19... Nbd5 {[%clk 0:02:20.8]} 20. Be5 {[%clk 0:02:18.4]} 20... Nd7 {[%clk
0:02:11.6]} 21. Bxg7 {[%clk 0:01:41]} 21... Kxg7 {[%clk 0:02:08.7]} 22. Nxe6+
{[%clk 0:01:41.5]} 22... fxe6 {[%clk 0:02:04.3]} 23. Qxe6 {[%clk 0:01:35.6]}
23... Rxf1+ {[%clk 0:02:00.5]} 24. Rxf1 {[%clk 0:01:34.9]} 24... N7f6 {[%clk
0:01:58.1]} 25. Rf5 {[%clk 0:01:16.9]} 25... Qc6 {[%clk 0:01:24.2]} 26. Rg5+
{[%clk 0:01:15.6]} 26... Kh8 {[%clk 0:01:23.9]} 27. Qf7 {[%clk 0:01:05]} 27...
Rg8 {[%clk 0:01:23.5]} 28. Rxg8+ {[%clk 0:01:01.8]} 28... Nxg8 {[%clk
0:01:23.1]} 29. h4 {[%clk 0:00:55.4]} 29... Bxh4 {[%clk 0:01:17.7]} 30. Nb2
{[%clk 0:00:41.9]} 30... Bg3 {[%clk 0:01:10.7]} 31. Nd3 {[%clk 0:00:40.1]} 31...
Qxc2 {[%clk 0:01:06.8]} 0-1

[Event "*** Titled Tuesday Blitz"]
[Site "Chess.com"]
[Date "2020.05.19"]
[Round "10"]
[White "lelya96"]
[Black "TurboSteen"]
[Result "1-0"]
[WhiteElo "2251"]
[BlackElo "2003"]
[TimeControl "180+1"]
[EndTime "13:55:31 PDT"]
[Termination "lelya96 won on time"]

1. e4 {[%clk 0:03:00.9]} 1... e6 {[%clk 0:02:57.8]} 2. d4 {[%clk 0:03:00.5]}
2... d5 {[%clk 0:02:58.2]} 3. Nc3 {[%clk 0:03:00.6]} 3... Bb4 {[%clk 0:02:57.8]}
4. Ne2 {[%clk 0:02:58.4]} 4... Nc6 {[%clk 0:02:55.7]} 5. exd5 {[%clk 0:02:53]}
5... exd5 {[%clk 0:02:51.8]} 6. a3 {[%clk 0:02:52.7]} 6... Ba5 {[%clk
0:02:49.3]} 7. b4 {[%clk 0:02:48.4]} 7... Bb6 {[%clk 0:02:47.2]} 8. Be3 {[%clk
0:02:47.7]} 8... Nge7 {[%clk 0:01:52.4]} 9. Ng3 {[%clk 0:02:43]} 9... O-O {[%clk
0:01:43.1]} 10. Bb5 {[%clk 0:02:39.6]} 10... Nf5 {[%clk 0:01:33.4]} 11. Nxf5
{[%clk 0:02:36.7]} 11... Bxf5 {[%clk 0:01:21.7]} 12. g4 {[%clk 0:02:32.3]} 12...
Bg6 {[%clk 0:01:15.2]} 13. h4 {[%clk 0:02:31.4]} 13... Re8 {[%clk 0:01:05.3]}
14. Bxc6 {[%clk 0:02:25.6]} 14... bxc6 {[%clk 0:01:02.7]} 15. h5 {[%clk
0:02:19.9]} 15... Be4 {[%clk 0:01:01.1]} 16. f3 {[%clk 0:02:17.3]} 16... Bxc2
{[%clk 0:00:54.7]} 17. Qd2 {[%clk 0:02:09.7]} 17... Qg5 {[%clk 0:00:49.2]} 18.
Kf2 {[%clk 0:02:08.2]} 18... Qf6 {[%clk 0:00:38.5]} 19. Ne2 {[%clk 0:01:55]}
19... Bb3 {[%clk 0:00:27.4]} 20. a4 {[%clk 0:01:48.3]} 20... a5 {[%clk
0:00:22.9]} 21. g5 {[%clk 0:01:31.1]} 21... Qe7 {[%clk 0:00:15.3]} 22. g6 {[%clk
0:01:26.6]} 22... h6 {[%clk 0:00:09.7]} 23. gxf7+ {[%clk 0:01:25.1]} 23... Qxf7
{[%clk 0:00:07.7]} 24. Rag1 {[%clk 0:01:21.6]} 24... Bc4 {[%clk 0:00:04.1]} 25.
Nf4 {[%clk 0:01:11.6]} 1-0

[Event "*** Titled Tuesday Blitz"]
[Site "Chess.com"]
[Date "2020.05.19"]
[Round "10"]
[White "A-Fier"]
[Black "Skatchkov_V"]
[Result "1-0"]
[WhiteElo "2739"]
[BlackElo "2558"]
[TimeControl "180+1"]
[EndTime "13:55:33 PDT"]
[Termination "A-Fier won by resignation"]

1. e4 {[%clk 0:03:00.9]} 1... e5 {[%clk 0:02:59]} 2. f4 {[%clk 0:03:00.9]} 2...
Nf6 {[%clk 0:02:59.7]} 3. Nf3 {[%clk 0:02:56.9]} 3... d6 {[%clk 0:02:40]} 4. Nc3
{[%clk 0:02:55.5]} 4... Nc6 {[%clk 0:02:40]} 5. Bc4 {[%clk 0:02:55.1]} 5... Be7
{[%clk 0:02:38.6]} 6. d3 {[%clk 0:02:55]} 6... exf4 {[%clk 0:01:56.8]} 7. Bxf4
{[%clk 0:02:53.5]} 7... Be6 {[%clk 0:01:57.7]} 8. Bb3 {[%clk 0:02:42.2]} 8...
Qd7 {[%clk 0:01:54]} 9. O-O {[%clk 0:02:42]} 9... h6 {[%clk 0:01:52.9]} 10. d4
{[%clk 0:02:41.4]} 10... d5 {[%clk 0:01:53]} 11. e5 {[%clk 0:02:38.8]} 11... Nh5
{[%clk 0:01:48.8]} 12. Be3 {[%clk 0:02:38.3]} 12... g5 {[%clk 0:01:48.8]} 13.
Ne1 {[%clk 0:02:33.8]} 13... Ng7 {[%clk 0:01:35.8]} 14. Nd3 {[%clk 0:02:30.8]}
14... Nf5 {[%clk 0:01:35.5]} 15. Rxf5 {[%clk 0:02:31.4]} 15... Bxf5 {[%clk
0:01:35]} 16. Nxd5 {[%clk 0:02:32.1]} 16... O-O-O {[%clk 0:01:19.4]} 17. c4
{[%clk 0:02:31.1]} 17... Be4 {[%clk 0:01:09.4]} 18. Rc1 {[%clk 0:02:20.2]} 18...
Qf5 {[%clk 0:01:00.6]} 19. Nf2 {[%clk 0:02:17.4]} 19... Bxd5 {[%clk 0:00:17.3]}
20. cxd5 {[%clk 0:02:17.3]} 20... Nb4 {[%clk 0:00:17.9]} 21. d6 {[%clk
0:02:17.6]} 21... Bxd6 {[%clk 0:00:18.7]} 22. exd6 {[%clk 0:02:17.7]} 22... Rxd6
{[%clk 0:00:19.6]} 23. Qd2 {[%clk 0:02:15.8]} 23... Nd5 {[%clk 0:00:18.4]} 24.
Nd3 {[%clk 0:02:04.9]} 24... Re8 {[%clk 0:00:13.4]} 25. Bf2 {[%clk 0:02:04.9]}
25... Nf4 {[%clk 0:00:10.4]} 26. Nxf4 {[%clk 0:02:04.9]} 26... gxf4 {[%clk
0:00:10.7]} 27. Bd1 {[%clk 0:02:04]} 27... f3 {[%clk 0:00:06.5]} 28. Bxf3 {[%clk
0:02:03.1]} 28... Rg6 {[%clk 0:00:07]} 29. Qc3 {[%clk 0:01:59.8]} 29... Re7
{[%clk 0:00:03.9]} 30. d5 {[%clk 0:02:00]} 30... Kb8 {[%clk 0:00:03.9]} 31. Qa3
{[%clk 0:01:45.4]} 31... a6 {[%clk 0:00:03.5]} 32. Qxe7 {[%clk 0:01:43.2]} 1-0

[Event "*** Titled Tuesday Blitz"]
[Site "Chess.com"]
[Date "2020.05.19"]
[Round "10"]
[White "TudorAnton"]
[Black "Zmof"]
[Result "0-1"]
[WhiteElo "2442"]
[BlackElo "2250"]
[TimeControl "180+1"]
[EndTime "13:55:36 PDT"]
[Termination "Zmof won by checkmate"]

1. d4 {[%clk 0:03:00.9]} 1... f5 {[%clk 0:02:59.4]} 2. Bg5 {[%clk 0:02:59]} 2...
h6 {[%clk 0:02:58.3]} 3. Bh4 {[%clk 0:02:58.4]} 3... g5 {[%clk 0:02:58.2]} 4.
Bg3 {[%clk 0:02:58.4]} 4... Nf6 {[%clk 0:02:58.1]} 5. e3 {[%clk 0:02:58.3]} 5...
d6 {[%clk 0:02:57.5]} 6. h4 {[%clk 0:02:56.8]} 6... Rg8 {[%clk 0:02:56.8]} 7.
hxg5 {[%clk 0:02:56.5]} 7... hxg5 {[%clk 0:02:56.2]} 8. Nf3 {[%clk 0:02:57.1]}
8... c6 {[%clk 0:02:42.4]} 9. Bc4 {[%clk 0:02:56.2]} 9... Rg7 {[%clk 0:02:41.3]}
10. Rh8 {[%clk 0:02:53.6]} 10... Na6 {[%clk 0:02:39]} 11. Nc3 {[%clk 0:02:47.7]}
11... Bd7 {[%clk 0:02:36.2]} 12. Bxa6 {[%clk 0:02:41]} 12... bxa6 {[%clk
0:02:35.8]} 13. Qd3 {[%clk 0:02:41.9]} 13... Qb6 {[%clk 0:02:33.9]} 14. O-O-O
{[%clk 0:02:41]} 14... Rb8 {[%clk 0:02:20.5]} 15. b3 {[%clk 0:02:38.4]} 15...
Nd5 {[%clk 0:01:54.7]} 16. Na4 {[%clk 0:02:25.3]} 16... Qa5 {[%clk 0:01:42.7]}
17. e4 {[%clk 0:02:25]} 17... Nb4 {[%clk 0:01:39.8]} 18. Qc4 {[%clk 0:02:12.5]}
18... Nxa2+ {[%clk 0:01:33.3]} 19. Kb2 {[%clk 0:02:12.9]} 19... Rb4 {[%clk
0:01:32.4]} 20. Qd3 {[%clk 0:02:03.3]} 20... Qxa4 {[%clk 0:01:30.5]} 21. Ra1
{[%clk 0:02:02.6]} 21... fxe4 {[%clk 0:01:13.9]} 22. Qxe4 {[%clk 0:02:00.3]}
22... Qb5 {[%clk 0:01:03.6]} 23. Rxa2 {[%clk 0:01:57.4]} 23... Bf5 {[%clk
0:01:03.6]} 24. Qe3 {[%clk 0:01:48.5]} 24... Rg6 {[%clk 0:00:54.5]} 25. Nd2
{[%clk 0:01:10.2]} 25... Re6 {[%clk 0:00:47.8]} 26. Qxg5 {[%clk 0:01:08.4]}
26... Re2 {[%clk 0:00:47.9]} 27. Qh5+ {[%clk 0:01:05.4]} 27... Kd7 {[%clk
0:00:41.9]} 28. Rxf8 {[%clk 0:01:05.6]} 28... Rxb3+ {[%clk 0:00:29.4]} 29. Nxb3
{[%clk 0:00:59.4]} 29... Rxc2+ {[%clk 0:00:27.8]} 30. Ka1 {[%clk 0:00:59.6]}
30... Qf1+ {[%clk 0:00:26.5]} 31. Nc1 {[%clk 0:00:56.4]} 31... Qxc1# {[%clk
0:00:25.2]} 0-1

[Event "*** Titled Tuesday Blitz"]
[Site "Chess.com"]
[Date "2020.05.19"]
[Round "10"]
[White "ChocolateRoses"]
[Black "Elbek_Jumanov"]
[Result "0-1"]
[WhiteElo "2280"]
[BlackElo "2435"]
[TimeControl "180+1"]
[EndTime "13:55:37 PDT"]
[Termination "Elbek_Jumanov won by resignation"]

1. Nf3 {[%clk 0:03:00.9]} 1... c5 {[%clk 0:02:59.4]} 2. g3 {[%clk 0:02:58.7]}
2... g6 {[%clk 0:02:59.6]} 3. Bg2 {[%clk 0:02:57.9]} 3... Bg7 {[%clk 0:02:59.6]}
4. c4 {[%clk 0:02:57.5]} 4... Nc6 {[%clk 0:03:00]} 5. Nc3 {[%clk 0:02:57]} 5...
Nf6 {[%clk 0:03:00.5]} 6. d4 {[%clk 0:02:55.5]} 6... cxd4 {[%clk 0:02:59.8]} 7.
Nxd4 {[%clk 0:02:56.4]} 7... O-O {[%clk 0:03:00]} 8. O-O {[%clk 0:02:56.1]} 8...
d6 {[%clk 0:03:00.5]} 9. Nxc6 {[%clk 0:02:55.1]} 9... bxc6 {[%clk 0:02:59.4]}
10. Bxc6 {[%clk 0:02:56]} 10... Rb8 {[%clk 0:02:59.6]} 11. Bg2 {[%clk 0:02:52]}
11... Qa5 {[%clk 0:03:00]} 12. e4 {[%clk 0:02:34.2]} 12... Be6 {[%clk
0:02:52.9]} 13. Nd5 {[%clk 0:02:30.3]} 13... Bxd5 {[%clk 0:02:50]} 14. cxd5
{[%clk 0:02:27.1]} 14... Rfc8 {[%clk 0:02:49.2]} 15. Bd2 {[%clk 0:02:25.9]}
15... Qa6 {[%clk 0:02:25.4]} 16. Bc3 {[%clk 0:02:25.5]} 16... Nd7 {[%clk
0:02:25.3]} 17. Bxg7 {[%clk 0:02:21.2]} 17... Kxg7 {[%clk 0:02:25.6]} 18. Qd4+
{[%clk 0:02:21.3]} 18... f6 {[%clk 0:02:24.2]} 19. a3 {[%clk 0:02:09.4]} 19...
Nc5 {[%clk 0:02:02]} 20. Rab1 {[%clk 0:01:59]} 20... Nb3 {[%clk 0:01:56.1]} 21.
Qe3 {[%clk 0:01:58.7]} 21... Rc2 {[%clk 0:01:55.2]} 22. Rfd1 {[%clk 0:01:50.7]}
22... Nc5 {[%clk 0:01:16.9]} 23. Rd2 {[%clk 0:01:13.6]} 23... Rbxb2 {[%clk
0:01:05.5]} 24. Rxc2 {[%clk 0:01:00.2]} 24... Rxb1+ {[%clk 0:00:54.1]} 25. Rc1
{[%clk 0:01:00.2]} 25... Rxc1+ {[%clk 0:00:49.2]} 26. Qxc1 {[%clk 0:00:59.9]}
26... Qd3 {[%clk 0:00:49.8]} 27. f3 {[%clk 0:00:42.4]} 27... Qd4+ {[%clk
0:00:48]} 28. Kh1 {[%clk 0:00:40.5]} 28... Nd3 {[%clk 0:00:45]} 29. h3 {[%clk
0:00:37.4]} 29... Nxc1 {[%clk 0:00:44.4]} 0-1

[Event "*** Titled Tuesday Blitz"]
[Site "Chess.com"]
[Date "2020.05.19"]
[Round "10"]
[White "mbachez"]
[Black "124chess"]
[Result "0-1"]
[WhiteElo "2494"]
[BlackElo "2735"]
[TimeControl "180+1"]
[EndTime "13:55:39 PDT"]
[Termination "124chess won by resignation"]

1. e4 {[%clk 0:03:00.9]} 1... d6 {[%clk 0:02:58.8]} 2. d4 {[%clk 0:02:59]} 2...
Nf6 {[%clk 0:02:58.4]} 3. Nc3 {[%clk 0:02:55.9]} 3... e5 {[%clk 0:02:58.3]} 4.
Nf3 {[%clk 0:02:53.8]} 4... Nbd7 {[%clk 0:02:57.5]} 5. Bc4 {[%clk 0:02:53.2]}
5... Be7 {[%clk 0:02:57.6]} 6. O-O {[%clk 0:02:51.8]} 6... O-O {[%clk
0:02:57.6]} 7. a4 {[%clk 0:02:40.5]} 7... c6 {[%clk 0:02:57.5]} 8. Re1 {[%clk
0:02:40.3]} 8... exd4 {[%clk 0:02:57.3]} 9. Nxd4 {[%clk 0:02:39.4]} 9... Ne5
{[%clk 0:02:58.2]} 10. Bf1 {[%clk 0:02:39.8]} 10... Re8 {[%clk 0:02:58.4]} 11.
h3 {[%clk 0:02:36.1]} 11... Bd7 {[%clk 0:02:58.3]} 12. a5 {[%clk 0:02:35.2]}
12... b5 {[%clk 0:02:57.4]} 13. a6 {[%clk 0:02:30.2]} 13... Ng6 {[%clk
0:02:53.1]} 14. b3 {[%clk 0:02:28.2]} 14... Bf8 {[%clk 0:02:52.1]} 15. Bb2
{[%clk 0:02:27.1]} 15... b4 {[%clk 0:02:52]} 16. Na2 {[%clk 0:02:13.2]} 16...
Nxe4 {[%clk 0:02:52]} 17. Nxb4 {[%clk 0:02:10.4]} 17... c5 {[%clk 0:02:52.3]}
18. Ndc6 {[%clk 0:02:03.8]} 18... Qc7 {[%clk 0:02:52.2]} 19. Qf3 {[%clk
0:01:56.3]} 19... Bxc6 {[%clk 0:02:51.2]} 20. Nxc6 {[%clk 0:01:39.9]} 20... Qxc6
{[%clk 0:02:52.1]} 21. c4 {[%clk 0:01:37.9]} 21... Re6 {[%clk 0:02:26]} 22. Bd3
{[%clk 0:01:29.7]} 22... Rae8 {[%clk 0:02:25.7]} 23. Re3 {[%clk 0:01:29.6]}
23... Nh4 {[%clk 0:01:54.4]} 24. Qg4 {[%clk 0:01:29.7]} 24... Ng6 {[%clk
0:01:05]} 25. Qf3 {[%clk 0:01:28.3]} 25... Qa8 {[%clk 0:00:56.5]} 26. Rae1
{[%clk 0:01:14]} 26... Nf6 {[%clk 0:00:51.6]} 27. Qxa8 {[%clk 0:01:05.6]} 27...
Rxa8 {[%clk 0:00:52.5]} 28. Rxe6 {[%clk 0:00:49.9]} 28... fxe6 {[%clk
0:00:53.4]} 29. Rxe6 {[%clk 0:00:50.3]} 29... Kf7 {[%clk 0:00:54]} 30. Re1
{[%clk 0:00:49.5]} 30... Re8 {[%clk 0:00:53.8]} 31. Rd1 {[%clk 0:00:49.7]} 31...
Nf4 {[%clk 0:00:51.2]} 32. Bc2 {[%clk 0:00:49.3]} 32... Re2 {[%clk 0:00:50.5]}
33. Rc1 {[%clk 0:00:49.6]} 33... Nd3 {[%clk 0:00:50.5]} 0-1

[Event "*** Titled Tuesday Blitz"]
[Site "Chess.com"]
[Date "2020.05.19"]
[Round "10"]
[White "colonelcassad"]
[Black "ChronicUnhappiness"]
[Result "1-0"]
[WhiteElo "2422"]
[BlackElo "2291"]
[TimeControl "180+1"]
[EndTime "13:55:42 PDT"]
[Termination "colonelcassad won by resignation"]

1. d4 {[%clk 0:03:00.9]} 1... Nf6 {[%clk 0:02:59]} 2. Nf3 {[%clk 0:03:00.9]}
2... d5 {[%clk 0:02:57.4]} 3. Bf4 {[%clk 0:03:00.9]} 3... Bf5 {[%clk 0:02:56.5]}
4. e3 {[%clk 0:03:00.9]} 4... e6 {[%clk 0:02:56.6]} 5. Be2 {[%clk 0:03:00.8]}
5... c5 {[%clk 0:02:54.5]} 6. c3 {[%clk 0:03:00.4]} 6... Nc6 {[%clk 0:02:53.5]}
7. Nbd2 {[%clk 0:02:59.7]} 7... Bd6 {[%clk 0:02:51.7]} 8. Bg5 {[%clk 0:02:59.8]}
8... h6 {[%clk 0:02:50.8]} 9. Bh4 {[%clk 0:02:59.5]} 9... Qb6 {[%clk 0:02:43.1]}
10. Qb3 {[%clk 0:02:46.9]} 10... c4 {[%clk 0:02:40.6]} 11. Qxb6 {[%clk
0:02:45.8]} 11... axb6 {[%clk 0:02:41.3]} 12. a3 {[%clk 0:02:44.9]} 12... b5
{[%clk 0:02:31.8]} 13. Rc1 {[%clk 0:02:42.2]} 13... Ne4 {[%clk 0:02:30.5]} 14.
Nxe4 {[%clk 0:02:41.3]} 14... Bxe4 {[%clk 0:02:28.4]} 15. O-O {[%clk 0:02:34.3]}
15... f6 {[%clk 0:02:27.4]} 16. Nd2 {[%clk 0:02:33.9]} 16... Bh7 {[%clk
0:02:24.9]} 17. f3 {[%clk 0:02:24.6]} 17... O-O {[%clk 0:02:21.1]} 18. e4 {[%clk
0:02:21]} 18... Bf4 {[%clk 0:02:19.6]} 19. Rcd1 {[%clk 0:02:06.9]} 19... Bxd2
{[%clk 0:02:12.9]} 20. Rxd2 {[%clk 0:02:04.8]} 20... dxe4 {[%clk 0:02:12.5]} 21.
d5 {[%clk 0:01:55.4]} 21... e3 {[%clk 0:01:54.2]} 22. Rdd1 {[%clk 0:01:55.3]}
22... Ne5 {[%clk 0:01:48.6]} 23. dxe6 {[%clk 0:01:51.4]} 23... Nd3 {[%clk
0:01:40.8]} 24. f4 {[%clk 0:01:38]} 24... g5 {[%clk 0:01:21.4]} 25. Bg3 {[%clk
0:01:31.4]} 25... Nxb2 {[%clk 0:01:05.8]} 26. Rd7 {[%clk 0:01:21.8]} 26... Bd3
{[%clk 0:01:03.1]} 27. Re1 {[%clk 0:01:17.2]} 27... Rfe8 {[%clk 0:00:51.6]} 28.
Bh5 {[%clk 0:01:11]} 28... Rad8 {[%clk 0:00:22]} 29. Rxe3 {[%clk 0:01:05.1]}
29... Rxd7 {[%clk 0:00:19.7]} 30. exd7 {[%clk 0:01:03.3]} 30... Rf8 {[%clk
0:00:20.2]} 31. Re8 {[%clk 0:01:02]} 1-0

[Event "*** Titled Tuesday Blitz"]
[Site "Chess.com"]
[Date "2020.05.19"]
[Round "10"]
[White "AnishGiri"]
[Black "attack2mateU"]
[Result "1-0"]
[WhiteElo "2975"]
[BlackElo "2624"]
[TimeControl "180+1"]
[EndTime "13:55:48 PDT"]
[Termination "AnishGiri won by resignation"]

1. d4 {[%clk 0:03:00.9]} 1... Nf6 {[%clk 0:02:58.9]} 2. c4 {[%clk 0:03:01.1]}
2... g6 {[%clk 0:02:58.3]} 3. Nc3 {[%clk 0:03:00.9]} 3... d5 {[%clk 0:02:58.9]}
4. cxd5 {[%clk 0:03:00.8]} 4... Nxd5 {[%clk 0:02:59.8]} 5. e4 {[%clk 0:03:01.3]}
5... Nxc3 {[%clk 0:02:59.4]} 6. bxc3 {[%clk 0:03:02.2]} 6... Bg7 {[%clk
0:02:59.4]} 7. Bc4 {[%clk 0:03:02.9]} 7... c5 {[%clk 0:02:59.3]} 8. Ne2 {[%clk
0:03:03.6]} 8... Nc6 {[%clk 0:02:58.6]} 9. Be3 {[%clk 0:03:03.9]} 9... O-O
{[%clk 0:02:58.5]} 10. O-O {[%clk 0:03:04.5]} 10... b6 {[%clk 0:02:57.8]} 11.
Qd2 {[%clk 0:03:03.8]} 11... Bb7 {[%clk 0:02:55.6]} 12. Rac1 {[%clk 0:03:04.3]}
12... Rc8 {[%clk 0:02:46.5]} 13. Bb5 {[%clk 0:03:04.2]} 13... cxd4 {[%clk
0:02:28.5]} 14. cxd4 {[%clk 0:03:03.6]} 14... e6 {[%clk 0:02:27.9]} 15. Rfd1
{[%clk 0:03:00.5]} 15... Qd6 {[%clk 0:01:50.1]} 16. h4 {[%clk 0:02:57.7]} 16...
Rfd8 {[%clk 0:01:49.5]} 17. Bg5 {[%clk 0:02:52.7]} 17... Ne7 {[%clk 0:01:23.4]}
18. Qe3 {[%clk 0:02:01]} 18... h6 {[%clk 0:00:59.2]} 19. Bxh6 {[%clk 0:01:48]}
19... Bxh6 {[%clk 0:00:58.6]} 20. Qxh6 {[%clk 0:01:48.7]} 20... Bxe4 {[%clk
0:00:58.2]} 21. Rxc8 {[%clk 0:01:43.1]} 21... Rxc8 {[%clk 0:00:57.1]} 22. Ng3
{[%clk 0:01:43.6]} 22... Qd5 {[%clk 0:00:47.6]} 23. Ba6 {[%clk 0:01:30.2]} 23...
Rc2 {[%clk 0:00:42.9]} 24. Nxe4 {[%clk 0:01:25.2]} 24... Qxe4 {[%clk 0:00:43]}
25. Bd3 {[%clk 0:01:25.3]} 25... Qc6 {[%clk 0:00:35.3]} 26. d5 {[%clk
0:00:49.4]} 26... Nxd5 {[%clk 0:00:20.2]} 27. Bxc2 {[%clk 0:00:49.2]} 27... Qxc2
{[%clk 0:00:20.2]} 28. Rc1 {[%clk 0:00:49.8]} 1-0

[Event "*** Titled Tuesday Blitz"]
[Site "Chess.com"]
[Date "2020.05.19"]
[Round "10"]
[White "OK97"]
[Black "valeriocarnicelli"]
[Result "1-0"]
[WhiteElo "2741"]
[BlackElo "2560"]
[TimeControl "180+1"]
[EndTime "13:55:49 PDT"]
[Termination "OK97 won by resignation"]

1. e4 {[%clk 0:03:00.9]} 1... e5 {[%clk 0:02:54.5]} 2. Nf3 {[%clk 0:03:01.1]}
2... Nc6 {[%clk 0:02:54.5]} 3. Bb5 {[%clk 0:03:01.5]} 3... f5 {[%clk 0:02:54.5]}
4. d3 {[%clk 0:02:50.6]} 4... fxe4 {[%clk 0:02:54.2]} 5. dxe4 {[%clk 0:02:51.5]}
5... Nf6 {[%clk 0:02:54.4]} 6. Qd3 {[%clk 0:02:45.5]} 6... Bc5 {[%clk
0:02:48.3]} 7. O-O {[%clk 0:02:36]} 7... d6 {[%clk 0:02:48]} 8. Bg5 {[%clk
0:01:53.8]} 8... O-O {[%clk 0:02:40.3]} 9. Bxc6 {[%clk 0:01:45]} 9... bxc6
{[%clk 0:02:40.1]} 10. Nxe5 {[%clk 0:01:40.8]} 10... Kh8 {[%clk 0:02:40.1]} 11.
Nf3 {[%clk 0:01:23.8]} 11... Qe8 {[%clk 0:02:29.9]} 12. Nbd2 {[%clk 0:01:20.8]}
12... a5 {[%clk 0:02:25.3]} 13. Be3 {[%clk 0:01:08.9]} 13... Ba6 {[%clk
0:02:20.8]} 14. c4 {[%clk 0:01:09]} 14... Nd7 {[%clk 0:02:19.8]} 15. Bxc5 {[%clk
0:00:58.5]} 15... Nxc5 {[%clk 0:02:12.6]} 16. Qe3 {[%clk 0:00:59]} 16... Rb8
{[%clk 0:02:07.1]} 17. b3 {[%clk 0:00:57.9]} 17... a4 {[%clk 0:02:05.3]} 18.
Rfe1 {[%clk 0:00:56.8]} 18... Qe7 {[%clk 0:01:59.9]} 19. e5 {[%clk 0:00:54.1]}
19... d5 {[%clk 0:01:56.3]} 20. Nd4 {[%clk 0:00:51.7]} 20... Rb6 {[%clk
0:01:46.8]} 21. b4 {[%clk 0:00:47.8]} 21... Ne6 {[%clk 0:01:43.4]} 22. c5 {[%clk
0:00:45.5]} 22... Nxd4 {[%clk 0:01:43.7]} 23. Qxd4 {[%clk 0:00:43.9]} 23... Rbb8
{[%clk 0:01:43.8]} 24. a3 {[%clk 0:00:39.3]} 24... Rf5 {[%clk 0:01:40.5]} 25.
Re3 {[%clk 0:00:29]} 25... Rbf8 {[%clk 0:01:39.9]} 26. Nf3 {[%clk 0:00:29.4]}
26... Rf4 {[%clk 0:01:37]} 27. Qd2 {[%clk 0:00:25.3]} 27... Re4 {[%clk
0:01:32.4]} 28. Rae1 {[%clk 0:00:24]} 28... Rff4 {[%clk 0:01:30.3]} 29. g3
{[%clk 0:00:22.1]} 29... Rxe3 {[%clk 0:01:27.5]} 30. Rxe3 {[%clk 0:00:23]} 30...
Rf8 {[%clk 0:01:26.8]} 31. Nd4 {[%clk 0:00:23]} 31... Qe8 {[%clk 0:01:20.1]} 32.
f4 {[%clk 0:00:22.8]} 32... Bc8 {[%clk 0:01:18.4]} 33. e6 {[%clk 0:00:23.1]}
33... Rf6 {[%clk 0:01:18.3]} 34. e7 {[%clk 0:00:22.5]} 34... Bd7 {[%clk
0:01:18]} 35. Re5 {[%clk 0:00:22.7]} 35... Qf7 {[%clk 0:01:17.8]} 36. Qe3 {[%clk
0:00:22.8]} 36... Be8 {[%clk 0:01:17.9]} 37. Ne6 {[%clk 0:00:22.3]} 37... Qxe7
{[%clk 0:01:14.3]} 38. Nxc7 {[%clk 0:00:18.4]} 1-0